{"text_format":"1","workbook":"xlsx","n_sheets":4,"sheets":["Saisi & Consultation","BASE de DONNEE","Paramètres","Départements"],"not_rendered":{"charts":0,"images":0,"macros":1,"external_links":0,"defined_names":2,"comments":0,"pivot_tables":0},"unopened":[],"bounds":{"document_bytes":16777216,"sheet_cells":100000,"rows_first":2000,"rows_last":500,"rows_between":2000,"halvings":0,"cell_chars":16384,"cell_head_chars":4096},"cells_cut":0,"cells_raw":0,"read":"whole","date_system":"1900"}

{"sheet":"Saisi & Consultation","index":0,"n_rows":62,"n_cols":12,"rows_kept":62,"cut":false,"hidden":false,"merged":[[7,5,7,6],[8,5,8,6],[7,7,7,8],[8,7,8,8]]}
[]
[]
[]
[]
[]
[]
[]
[null,null,null,null,null,"Choix Année",null,2012]
[null,null,null,null,null,"Choix Mois",null,"Mai"]
[]
[null,null,"Jour","Mois","Année","Thème","Lieu","Heure","Kms","Prix Kms","Acompte","Restant"]
[null,null,{"$f":"IF(AND($H$8=\"\",$H$9=\"\"),\"\",1)","v":1},{"$f":"IF(AND($H$8=\"\",$H$9=\"\"),\"\",$H$9)","v":"Mai"},{"$f":"IF(AND($H$8=\"\",$H$9=\"\"),\"\",$H$8)","v":2012}]
[null,null,{"$f":"IF(OR(AND($H$8=\"\",$H$9=\"\"),F12=\"\"),\"\",C12+1)","v":""},{"$f":"IF(OR(AND($H$8=\"\",$H$9=\"\"),F12=\"\"),\"\",$H$9)","v":""},{"$f":"IF(OR(AND($H$8=\"\",$H$9=\"\"),F12=\"\"),\"\",$H$8)","v":""}]
[null,null,"","",""]
[null,null,"","",""]
[null,null,"","",""]
[null,null,"","",""]
[null,null,"","",""]
[null,null,"","",""]
[null,null,"","",""]
[null,null,"","",""]
[null,null,"","",""]
[null,null,"","",""]
[null,null,"","",""]
[null,null,"","",""]
[null,null,"","",""]
[null,null,"","",""]
[null,null,"","",""]
[null,null,"","",""]
[null,null,"","",""]
[null,null,"","",""]
[null,null,"","",""]
[null,null,"","",""]
[null,null,"","",""]
[null,null,"","",""]
[null,null,"","",""]
[null,null,"","",""]
[null,null,"","",""]
[null,null,"","",""]
[null,null,"","",""]
[null,null,"","",""]
[null,null,"","",""]
[]
[]
[]
[]
[]
[]
[]
[]
["Janvier"]
["Février"]
["Mars"]
["Avril"]
["Mai"]
["Juin"]
["Juillet"]
["Août"]
["Septembre"]
["Octobre"]
["Novembre"]
["Décembre"]

{"sheet":"BASE de DONNEE","index":1,"n_rows":7,"n_cols":16,"rows_kept":7,"cut":false,"hidden":false,"merged":[[5,0,5,15]]}
[]
[]
[]
[]
[]
["Base de données Clients"]
["N° Ordre","Date","Thème ","Lieu","Heure","Tarif","Kilomètres","Prix  Kms","Acompte","Restant","Total"," Client","Adresse Client","Code  Postal","Ville","Département"]

{"sheet":"Paramètres","index":2,"n_rows":9,"n_cols":7,"rows_kept":9,"cut":false,"hidden":false,"merged":[]}
["Thèmes","Lieu",null,"Thémes","Heure","Lieu","Prix"]
[null,null,null,"Princesse","01:00","Maison",90]
["Princesse","Maison",null,"Princesse","01:30","Maison",110]
["Pirate","Extèrieur",null,"Princesse","03:00","Maison",140]
["Sorcière",null,null,"Princesse","03:00","Maison",140]
["Fête foraine",null,null,"Sorcière","03:00","Maison",140]
["Fort boyard",null,null,"Fête foraine","03:00","Maison",180]
[null,null,null,"Fête foraine","03:00","Extèrieur",200]
[null,null,null,"Fort boyard","03:00","Maison",140]

{"sheet":"Départements","index":3,"n_rows":96,"n_cols":2,"rows_kept":96,"cut":false,"hidden":false,"merged":[]}
[1,"Ain"]
[2,"Aisne"]
[3,"Allier"]
[4,"Alpes-de-Hautes-Provence"]
[5,"Hautes-Alpes"]
[6,"Alpes-Maritimes"]
[7,"Ardèche"]
[8,"Ardennes"]
[9,"Ariège"]
[10,"Aube"]
[11,"Aude"]
[12,"Aveyron"]
[13,"Bouches-du-Rhône"]
[14,"Calvados"]
[15,"Cantal"]
[16,"Charente"]
[17,"Charente-Maritime"]
[18,"Cher"]
[19,"Corrèze"]
["2A","Corse-du-Sud"]
["2B","Haute-Corse"]
[21,"Côte-d'Or"]
[22,"Côtes-d'Armor"]
[23,"Creuse"]
[24,"Dordogne"]
[25,"Doubs"]
[26,"Drôme"]
[27,"Eure"]
[28,"Eure-et-Loir"]
[29,"Finistère"]
[30,"Gard"]
[31,"Haute-Garonne"]
[32,"Gers"]
[33,"Gironde"]
[34,"Hérault"]
[35,"Ille-et-Vilaine"]
[36,"Indre"]
[37,"Indre-et-Loire"]
[38,"Isère"]
[39,"Jura"]
[40,"Landes"]
[41,"Loir-et-Cher"]
[42,"Loire"]
[43,"Haute-Loire"]
[44,"Loire-Atlantique"]
[45,"Loiret"]
[46,"Lot"]
[47,"Lot-et-Garonne"]
[48,"Lorrèze"]
[49,"Maine-et-Loire"]
[50,"Manche"]
[51,"Marne"]
[52,"Haute-Marne"]
[53,"Mayenne"]
[54,"Meurthe-et-Moselle"]
[55,"Meuse"]
[56,"Morbihan"]
[57,"Moselle"]
[58,"Nièvre"]
[59,"Nord"]
[60,"Oise"]
[61,"Orne"]
[62,"Pas-de-Calais"]
[63,"Puy-de-Dôme"]
[64,"Pyrénées-Atlantiques"]
[65,"Hautes-Pyrénées"]
[66,"Pyrénées-Orientales"]
[67,"Bas-Rhin"]
[68,"Haut-Rhin"]
[69,"Rhône"]
[70,"Haute-Saône"]
[71,"Saône-et-Loire"]
[72,"Sarthe"]
[73,"Savoie"]
[74,"Haute-Savoie"]
[75,"Paris"]
[76,"Seine-Maritime"]
[77,"Seine-et-Marne"]
[78,"Yvelines"]
[79,"Deux-Sèvres"]
[80,"Somme"]
[81,"Tarn"]
[82,"Tarn-et-Garonne"]
[83,"Var"]
[84,"Vaucluse"]
[85,"Vendée"]
[86,"Vienne"]
[87,"Haute-Vienne"]
[88,"Vosges"]
[89,"Yonne"]
[90,"Territoire-de-Belfort"]
[91,"Essonne"]
[92,"Hauts-de-Seine"]
[93,"Seine-Saint-Denis"]
[94,"Val-de-Marne"]
[95,"Val-d'Oise"]